Cogmind - Beta 15 @@@ ROGUE MODE // 2025.09.11 @ 12:22:03 Player: lepire Result: Destroyed by G-34 Mercenary with Small Laser Performance ------------- Evolutions (1) 500 Regions Visited (3) 600 Robots Destroyed (60) 300 Value Destroyed (1451) 1451 Prototype IDs (9) 180 Alien Tech Used (0) 0 Bonus (170) 170 TOTAL SCORE: 3201 Bonus ------- Follower Combat Kills 170 Cogmind --------- Core Integrity 0/400 Matter 291/300 Energy 98/100 System Corruption 5% Temperature Cool (6) Movement Core (50) Location -9/Storage Parts ------- > --- POWER (1) -------- (None) > --- PROPULSION (2) --- (None) > --- UTILITY (3) ------ (None) > --- WEAPON (3) ------- (None) > --- INVENTORY (5) ---- Heavy Ion Engine Small Storage Unit Light Armor Plating Light Armor Plating Hardened Light Armor Plating Peak State ------------ > --- POWER ------------ Heavy Ion Engine > --- PROPULSION ------- Light Treads Compact Wheel > --- UTILITY ---------- Medium Storage Unit Light Armor Plating Hardened Light Armor Plating > --- WEAPON ----------- Heavy Assault Rifle Heavy Assault Rifle Heavy Assault Rifle > --- INVENTORY -------- Heavy Ion Engine Light Treads Improved Treads Heat Sink Small Storage Unit Light Armor Plating Grenade Launcher [Rating: 16] Favorites ----------- Power Ion Engine Engine Ion Engine Propulsion Light Treads Treads Light Treads Wheel Compact Wheel Utility Small Storage Unit Device Seismic Detector Storage Small Storage Unit Protection Light Armor Plating Weapon Heavy Assault Rifle Energy Gun Medium Laser Energy Cannon Advanced Beam Cannon Ballistic Gun Heavy Assault Rifle Launcher Grenade Launcher Build | -11 -10 -9 -9 ------- Run | Yrd Mat Mat Sto Slots Evolved 2 | . . 2 . Power . | . . . . Propulsion . | . . . . Utility 1 | . . 1 . Weapon 1 | . . 1 . Parts Attached 33 | 7 1 10 15 Power 4 | 1 . 1 2 Engine 4 | 1 . 1 2 Core . | . . . . Reactor . | . . . . Propulsion 6 | 2 1 1 2 Treads 5 | 2 . 1 2 Leg . | . . . . Wheel 1 | . 1 . . Hover . | . . . . Flight . | . . . . Utility 10 | 2 . 3 5 Device 2 | 1 . . 1 Storage 2 | 1 . . 1 Processor . | . . . . Hackware . | . . . . Protection 6 | . . 3 3 Artifact . | . . . . Weapon 13 | 2 . 5 6 Energy Gun 4 | 2 . 1 1 Energy Cannon 1 | . . . 1 Ballistic Gun 7 | . . 4 3 Ballistic Cannon . | . . . . Launcher 1 | . . . 1 Special Weapon . | . . . . Impact Weapon . | . . . . Slashing Weapon . | . . . . Piercing Weapon . | . . . . Special Melee Weapon . | . . . . Unidentified Prototypes 1 | . . . 1 Parts Lost 10 | . . . 10 Power . | . . . . Propulsion 3 | . . . 3 Utility 2 | . . . 2 Weapon 5 | . . . 5 Highest Loss Streak 2 | . . . 2 To Critical Strikes . | . . . . Average Backups 5 | 1 3 6 5 Power . | . . . . Propulsion 1 | 1 1 1 1 Utility 2 | . . 1 2 Weapon 1 | . 1 3 . Tool/Special . | . . . . Unused Backups 6 | 2 . 3 1 Power 1 | . . . 1 Propulsion 2 | 2 . . . Utility 1 | . . 1 . Weapon 2 | . . 2 . Tool/Special . | . . . . Average Slot Usage (%) 87 | . 98 87 85 Engine 9 | . 14 11 7 Treads 16 | . 26 15 14 Wheel 4 | . 1 6 3 Device 2 | . 12 . 2 Storage 11 | . 14 11 10 Protection 12 | . . 10 17 Energy Gun 10 | . 28 15 4 Ballistic Gun 17 | . . 16 21 Peak Build Rating 16 | 7 7 14 16 Average Rating 10 | 5 6 11 11 On Entrance 6 | . 7 6 13 Naked Turns 25 | . . . 25 Heaviest Build 35 | 15 15 27 35 Greatest Support 43 | 40 40 43 43 Greatest Overweight (x) 8 | . . 1 8 Average Overweight (x) . | . . . . Largest Inventory Capacity 10 | 8 8 8 10 Average Capacity 8 | 7 8 8 9 Most Carried 8 | 4 6 8 7 Average Carried 5 | 1 3 6 5 Final Capacity 8 | 8 8 8 5 Final Carried 6 | 2 6 5 5 Class Distribution -------------------- 38% | Scavenger-Tank 32% | Mutant 11% | Gunner 8% | Commander-Tank 7% | Tank Dominant Class ---------------- Mutant | -10/Materials Scavenger-Tank | -9/Materials Scavenger-Tank | -9/Storage Resources | -11 -10 -9 -9 ----------- Run | Yrd Mat Mat Sto Matter Collected 1353 | 212 83 422 636 Remotely . | . . . . Salvage Created 2244 | 130 71 794 1249 Parts 140 | 15 9 42 74 Haulers Intercepted 9 | . . 4 5 Recyclers Shooed 7 | . . 1 6 Parts Field Recycled . | . . . . Retrieved Matter . | . . . . Parts Self-Destructed . | . . . . Prevented . | . . . . Kills | -11 -10 -9 -9 ------- Run | Yrd Mat Mat Sto Combat Hostiles Destroyed 36 | . 3 12 21 Guns 26 | . 3 12 11 Cannons 1 | . . . 1 AOE 9 | . . . 9 Classes Destroyed 11 | 2 2 4 3 Worker 5 | . . 2 3 Tunneler 5 | 3 1 1 . Hauler 9 | . . 4 5 Recycler 3 | 1 . . 2 Operator 1 | . . . 1 Watcher 1 | . . 1 . Swarmer 5 | . 2 3 . Grunt 16 | . 1 3 12 Brawler 2 | . . . 2 Protector 2 | . . . 2 Sentry 11 | . . 6 5 Best Kill Streak 6 | 4 2 4 6 Combat Bots Only 6 | . 2 4 6 Max Kills in Single Turn 3 | 1 1 1 3 Gunslinging . | . . . . Exploded 3 | . . . 3 Melee . | . . . . Uniques/NPCs Destroyed . | . . . . Combat | -11 -10 -9 -9 -------- Run | Yrd Mat Mat Sto Hostile Shots Fired 229 | . 11 48 170 Missed 72 | . 3 8 61 Hits 157 | . 8 40 109 Melee 6 | . . . 6 Projectile 151 | . 8 40 103 Critical Strikes 6 | . . 2 4 Damage Taken 2092 | . 72 502 1518 Core 416 | . 8 105 303 Absorbed by Shields . | . . . . Regen/Repaired (Parts) 108 | . . 58 50 Core Remaining (%) 98 | 100 96 . . Volleys Fired 159 | 9 9 48 93 Largest 3 | 2 2 3 3 Hottest 147 | 100 100 129 147 Shots Fired 368 | 16 18 143 191 Gun 352 | 16 18 143 175 Cannon 10 | . . . 10 Launcher 6 | . . . 6 Special . | . . . . Kinetic 231 | . . 69 162 Thermal 131 | 16 18 74 23 Explosive 6 | . . . 6 Electromagnetic . | . . . . Robot Hit Streak 15 | 4 8 15 11 Robot Miss Streak 6 | 5 2 6 4 Penetration Max . | . . . . Secondary Targets 1 | . . . 1 Max Gunslinging Chain 1 | . . . 1 Shots Hit Robots 233 | 7 10 92 124 Core Hits 100 | 5 5 31 59 Critical Kills . | . . . . Critical Parts Destroyed . | . . . . Critical Strikes 7 | . 3 3 1 Burn 7 | . 3 3 1 Melee Attacks . | . . . . Impact . | . . . . Slashing . | . . . . Piercing . | . . . . Sneak Attacks . | . . . . Combat Hostiles . | . . . . Follow-up Attacks . | . . . . Damage Inflicted 3822 | 100 127 1318 2277 Guns 2986 | 100 127 1318 1441 Cannons 143 | . . . 143 Explosions 656 | . . . 656 Melee . | . . . . Ramming 37 | . . . 37 Kinetic 1970 | . . 639 1331 Thermal 1159 | 100 127 679 253 Explosive 656 | . . . 656 Electromagnetic . | . . . . Impact . | . . . . Slashing . | . . . . Piercing . | . . . . Highest Corruption 5 | . . . 5 Average Corruption 5 | . . . 5 Corruption Purged . | . . . . Corruption Blocked . | . . . . Effects 18 | . . . 18 Message Errors 5 | . . . 5 Matter Fused 2 | . . . 2 Heat Flow Errors 3 | . . . 3 Energy Discharges 2 | . . . 2 Parts Rejected 1 | . . . 1 Data Loss (minor) 3 | . . . 3 Misfires 1 | . . . 1 Weapon Failures 1 | . . . 1 Overload Shots . | . . . . Overflow Damage 13 | . . . 13 Projectiles . | . . . . Explosions 13 | . . . 13 Melee . | . . . . Knockbacks . | . . . . Impact . | . . . . Kinetic . | . . . . Secondary . | . . . . Self-Inflicted Damage 35 | . . . 35 Shots 1 | . . . 1 Rammed 7 | . . . 7 Targets Rammed 7 | . . . 7 Kicked . | . . . . Crushed . | . . . . Highest Temperature 356 | 255 135 337 356 Average Temperature 97 | 133 51 88 109 Received Heat Transfer 789 | . 18 144 627 Effects 3 | . . . 3 Interference 3 | . . . 3 Siege Activations . | . . . . Martial Activations . | . . . . Shielding Activations . | . . . . Robots Disrupted . | . . . . Combat Hostiles . | . . . . Robots Corrupted . | . . . . Combat Hostiles . | . . . . Parts Fried . | . . . . Impact Corruptions . | . . . . Robots Melted . | . . . . Combat Hostiles . | . . . . Parts Melted 7 | . 1 5 1 Heat Transferred 3552 | 296 592 2072 592 Parts Sabotaged . | . . . . Parts Stolen . | . . . . Parts Stripped . | . . . . Power Chain Reactions . | . . . . Alert | -11 -10 -9 -9 ------- Run | Yrd Mat Mat Sto Maximum Alert Level 1 | . . . 1 Low Security (%) 84 | 100 100 100 69 Level 1 15 | . . . 30 Level 2 . | . . . . Level 3 . | . . . . Level 4 . | . . . . Level 5 . | . . . . High Security . | . . . . Max Security . | . . . . Peak Influence 305 | 15 71 186 305 Initial 40 | . . 21 40 Average 95 | 2 11 94 124 Influence Increases 1511 | 20 96 407 988 Destroy 0b10 Robot/C 840 | . 60 240 540 Destroy 0b10 Robot/NC 130 | 20 5 40 65 Destroy Leader 280 | . 20 90 170 Allied During Kill 75 | . . . 75 Successful Hack 67 | . 10 33 24 Select Force Hacks 50 | . . . 50 Disable Machine 30 | . . . 30 Destroy Structure 39 | . 1 4 34 Influence Decreases 1215 | 20 45 361 789 Entered New Map 87 | . . 30 57 Time Decay 848 | 20 45 331 452 Lost Part 100 | . . . 100 Lost Ally 180 | . . . 180 Squads Dispatched 8 | . 1 1 6 Investigation 3 | . . . 3 Extermination . | . . . . Reinforcement 3 | . 1 1 1 Assault 2 | . . . 2 Garrison . | . . . . Intercept . | . . . . Searches Triggered . | . . . . Construction Impeded . | . . . . Haulers Reinforced . | . . . . Active Scanning Responses . | . . . . Cargo Convoy Interrupts . | . . . . Stealth | -11 -10 -9 -9 --------- Run | Yrd Mat Mat Sto Distress Signals 5 | . . 1 4 Communications Jammed . | . . . . Distress Signals . | . . . . Times Spotted 59 | . 6 15 38 Peak Tracking Total 7 | . 2 4 7 Tactical Retreats . | . . . . Traps | -11 -10 -9 -9 ------- Run | Yrd Mat Mat Sto Traps Triggered . | . . . . Indirectly . | . . . . Trap Hack Attempts . | . . . . Triggered . | . . . . Disarmed . | . . . . Reprogrammed . | . . . . Reused . | . . . . Traps Extracted . | . . . . Installed . | . . . . Triggered . | . . . . Machines | -11 -10 -9 -9 ---------- Run | Yrd Mat Mat Sto Machines Disabled 2 | . . . 2 Max in Single Turn 1 | . . . 1 Machines Repaired . | . . . . Machines Dismantled . | . . . . Machines Sabotaged 1 | . . . 1 Overloaded Fab Kills . | . . . . Hacking | -11 -10 -9 -9 --------- Run | Yrd Mat Mat Sto Machines Accessed 16 | . 4 6 6 Terminals 13 | . 3 5 5 Fabricators . | . . . . Repair Stations 2 | . . 1 1 Recycling Units 1 | . 1 . . Scanalyzers . | . . . . Garrison Access . | . . . . Total Hacks 44 | . 9 20 15 Successful 24 | . 6 10 8 Failed 20 | . 3 10 7 Catastrophic 3 | . . 1 2 Database Lockouts . | . . . . Manual 9 | . 1 4 4 Terminals 31 | . 6 16 9 Fabricators . | . . . . Repair Stations 10 | . . 4 6 Recycling Units 3 | . 3 . . Scanalyzers . | . . . . Garrison Access . | . . . . Terminal Hacks 16 | . 4 8 4 Prototype ID Bank 6 | . 2 3 1 Branch Access Points 1 | . . 1 . Alert Level 1 | . . 1 . Locate Traps 3 | . 1 1 1 Hauler Manifests 1 | . 1 . . Zone Layout 4 | . . 2 2 Fabricator Hacks . | . . . . Repair Station Hacks 5 | . . 2 3 Scan Component 3 | . . 1 2 Repair 2 | . . 1 1 Recycling Unit Hacks 2 | . 2 . . Report Inventory 1 | . 1 . . Retrieve Components 1 | . 1 . . Scanalyzer . | . . . . Garrison Access Hacks . | . . . . Unauthorized Hacks 1 | . . . 1 Terminals 1 | . . . 1 Sabotage 1 | . . . 1 Fabricators . | . . . . Repair Stations . | . . . . Recycling Units . | . . . . Scanalyzers . | . . . . Garrison Access . | . . . . Data Cores Recovered . | . . . . Used . | . . . . Hacking Detections 11 | . 2 5 4 Full Trace Events 2 | . . . 2 Feedback Events . | . . . . Feedback Blocked . | . . . . Robot Schematics Acquired . | . . . . Robots Built . | . . . . Authchips . | . . . . Time . | . . . . Total Robot Build Rating . | . . . . Part Schematics Acquired . | . . . . Parts Built . | . . . . Authchips . | . . . . Time . | . . . . Total Part Build Rating . | . . . . Parts Repaired 2 | . . 1 1 Time 52 | . . 26 26 Parts Recycled . | . . . . Recycled Matter . | . . . . Retrieved Matter . | . . . . Retrieved Components 3 | . 3 . . Parts Scanalyzed . | . . . . Part Schematics Acquired . | . . . . Parts Damaged . | . . . . Bothacking | -11 -10 -9 -9 ------------ Run | Yrd Mat Mat Sto Used RIF Installer . | . . . . Robots Hacked . | . . . . Non-combat . | . . . . Combat . | . . . . Robot Hacks Applied . | . . . . Relay Couplers Released . | . . . . Fabnet Peak Effective % . | . . . . Robots Rewired . | . . . . Allies Hacked . | . . . . Hacks Repelled . | . . . . Allies | -11 -10 -9 -9 -------- Run | Yrd Mat Mat Sto Total Allies 12 | . . . 12 Largest Group 10 | . . . 10 Highest-Rated Group 88 | . . . 88 Highest-Rated Ally 31 | . . . 31 Total Orders . | . . . . Ally Attacks 94 | . . . 94 Total Damage 920 | . . . 920 Kills 8 | . . . 8 Allies Corrupted . | . . . . Allies Melted 1 | . . . 1 Intel | -11 -10 -9 -9 ------- Run | Yrd Mat Mat Sto Active Infowar (turns) 284 | 25 259 . . Seismic 284 | 25 259 . . Robot Analysis Total . | . . . . Derelict Logs Recovered . | . . . . Drone Launches . | . . . . Drone Recoveries . | . . . . Exploration | -11 -10 -9 -9 ------------- Run | Yrd Mat Mat Sto Turns Passed 2537 | 131 307 792 1307 Spaces Moved 1316 | 60 164 420 672 Core 61 | 4 . . 57 Treads 606 | 56 148 94 308 Legs . | . . . . Wheels 649 | . 16 326 307 Hover . | . . . . Flight . | . . . . Fastest Speed 50 | 50 100 115 50 Average Speed 136 | 152 154 125 137 Slowest Speed 450 | 160 160 160 450 Overloaded Moves . | . . . . Propulsion Burnouts . | . . . . Robots Hopped . | . . . . Potential Cave-ins . | . . . . Cave-ins Triggered . | . . . . Exploration Rate (%) 39 | 4 32 33 89 Regions Visited 3 Branch Regions 1 Pre-discovered Areas . | . . . . Known Exits Taken 1 | . . 1 . Unknown Exits Taken 2 | 1 1 . . Scrap Searched . | . . . . Spaces Dug . | . . . . Terrain Destroyed 37 | . . . 37 Melee . | . . . . Projectile . | . . . . AOE 37 | . . . 37 Terrain Rammed . | . . . . Walls Destroyed . | . . . . Machines Disabled . | . . . . Actions | -11 -10 -9 -9 --------- Run | Yrd Mat Mat Sto Total 1734 | 81 199 572 882 Wait 177 | . 19 77 81 Move 1313 | 59 163 419 672 Hop . | . . . . Pick Up 10 | 4 3 1 2 Fast Attach 18 | 7 . 4 7 Attach 4 | . . . 4 Detach 1 | . 1 . . Swap 33 | . 4 16 13 Drop 12 | 2 . 7 3 Fire 159 | 9 9 48 93 Melee . | . . . . Ram 4 | . . . 4 Kick . | . . . . Crush 3 | . . . 3 Escape Stasis . | . . . . Rewire . | . . . . Trap . | . . . . Miscellaneous . | . . . . Route ------- -11/Scrapyard -10/Materials -9/Materials (discovered 3 exits: Min / *Sto x2) -9/Storage (discovered 1 exit: [*Rec]) History --------- Turn | Location | Event 7 | -11/Scrapyard | Discovered new exit (range 15) 132 | -11/Scrapyard | Entered Materials 312 | -10/Materials | Build established: Mutant 345 | -10/Materials | Discovered new exit (range 14) 439 | -10/Materials | Entered another Materials area 439 | -9/Materials | Evolved 2 slots: Utility x1, Weapon x1 630 | -9/Materials | Identified exit to Mines 630 | -9/Materials | Identified exit to Storage 1070 | -9/Materials | Repaired Lgt. Armor Plating 1104 | -9/Materials | Build established: Scavenger-Tank 1231 | -9/Materials | Entered Storage 1448 | -9/Storage | Used back door to open Recycling access 1448 | -9/Storage | Discovered new exit (range 4) 1478 | -9/Storage | Met a pair of Derelict thieves 1632 | -9/Storage | Repaired Ion Engine 1887 | -9/Storage | Core integrity fell below 50% 2234 | -9/Storage | Assisted by bots powering up and referring to "LRC-V3" 2472 | -9/Storage | Lost 6 allies 2510 | -9/Storage | Core integrity fell below 20% 2513 | -9/Storage | Released all parts (8) 2538 | -9/Storage | Destroyed by G-34 Mercenary with Small Laser Last Messages --------------- 02511_ XKRKOF892FJ XTVKWL V/ XOEJ1GPC YJWJ 02513_ Released Adv. Beam Cannon. 02513_ Released Lgt. Treads. 02513_ Released Med. Storage Unit. 02513_ Released Imp. Assault Rifle. 02513_ Released Lgt. Treads. 02513_ Released Lgt. Armor Plating. 02513_ Released Ion Engine. 02513_ Released Imp. Medium Laser. 02513_ Acquired 12 matter. 02525_ Connecting with Terminal... >>Force(Sabotage) SYSTEM_VULNERABLE[Compression Vault] NETWORK_OVERLOAD COORDINATES_RETRIEVED 02525_ ALERT: Suspicious activity at Terminal S009. Dispatching Investigation squad. 02529_ Slammed into G-34 Mercenary. 02530_ Destabilizing: Core damaged (-16). 02535_ System corrupted: Matter fused (-9). Map ----- +----------------------------------------------------+ | ## ## """ # # #?????????????? | | ## #? """ ! # # #?????????????? | | ## #? """ ?# #? [ #?????????????? | | ## #?? ?# #?#########?????????????? | | ###### #?######??# #???????????????????????? | | ?????#%#?????????# #######?????????????????? | | ?????# #?????????# # =??????????????????? | | ?????# #?????????# # "???????????????????? | | ######+#?????????# # "???"????????????????? | | #?????????# + ""[]"????????????????? | | #?????????# # "!["??????????????????? | | """" #???####### #["]]"??????????????????? | | "??" #???# #%"""" #?????????????? | | "??" #???# ### % + #?????????????? | | "??" #???# ####+ ########?????????####### | | "??" #???# + =[* #??????????????# # | | """" #####+## %= #??????????????# # | | ## == = #??????????????# # | | ##+###### %[!=#??????????##### # | | # #???# """" * ##+######### # # | | %%!#???# """" ! +%=[!]=Y/! % " # | | # % #???# """" #! ==###### [ # # | | ##+###??# """" # *[#?#####+######## | | #??######## /w = #?# #???? | | #?????????## ### %[#?# " ###?? | | """" #?????##############@ ### "G" ""#?? | | """" #?????# #%"^" T"#?? | | """" #?????# g +%" ""#?? | | """" #?????# g#" ^ ###?? | | ######?????################+###/# !!! #???? | | ???????????????????????# # !!! #???? | | ?????????????????????#"" """# !!! #???? | | ?????????????????????#"Y """### ######???? | | ?????????????????????#"" """#?###????????? | | ?????????????????????### #????????????? | | ??##########???????????# """#????????????? | | ??# #???????????# """#????????????? | | ??# """ T #?########### """#????????????? | | ??# """ #?########### #????????????? | | ??# """ #?##! ! !### ########????????????? | | ??# #?## ! !!#####???????????????????? | | ??# ####!! ##??????????????????????? | | ??# ### ##??????????????????????? | | ??#!! ######" "#############????????????? | | ??#! =^#?###T ## #????????????? | | #########+##?#### ## """ #????????????? | | ##### % ######+##### """" " #????????????? | | ##### " "" " #????????????? | | T + " "" " #????????????? | | ##### ##### #T### " """" #????????????? | +----------------------------------------------------+ Best States ------------- Heat Dissipation 38 Energy Generation 14 Energy Capacity 280 Matter Stores 300 Matter Capacity 300 Sight Range 16 Terrain Scan Density 10 Armor Coverage 375 Evasion (%) 50 Recoil Reduction 2 Authchip Count 1 Item Schematics ----------------- None Robot Schematics ------------------ None Fabricated ------------ Nothing Repaired ---------- Lgt. Armor Plating | 35% | -9/Materials Ion Engine | 16% | -9/Storage Alien Tech Used ----------------- None Achievements -------------- None Challenges ------------ None Game ------ Seed PortableChargeCannon Manual? 0 Play Time 00:30:24 Cumulative 55.3 hours Start 2025.09.11 @ 11:53:17 End 2025.09.11 @ 12:22:03 Sessions 1 Manual Loads 0 Difficulty Rogue Special Mode None Game No. 67 Rogue 37 Adventurer 30 Explorer 0 Win Type - Total 0 Types 0/0/0/0/0/0/0/0/0/0 Lore% 26 Gallery% 31 Achievement% 29 Wizard Run 0 Options --------- Layout 1 ASCII 0 Keyboard 1 Movement Arrows Keybinds 0 Fullscreen 1 Font 24/Terminus Map View 50x35 Zoom Use 0% Tactical HUD 1 Map Filters NONE Filters NONE Steam 1 RUN: bca9ef75-6ac2-4962-acd8-d835dd3d3ff8